bitfinex/quotes_SOLUSD_20241117
["timestamp","ask_amount","ask_price","bid_price","bid_amount"]
[1731846975312,4.296,232.78,232.73,0.4557935]
[1731846975820,23.776884,232.81,232.73,0.4557935]
[1731846976323,4.2951,232.82,232.73,4.7524935]
[1731846976635,4.2951,232.82,232.73,0.4557935]
[1731846977136,0.09367462,232.81,232.73,0.4557935]
[1731846977335,0.09367462,232.81,232.62,4.2987]
[1731846977547,20.0,232.78,232.61,10.7474]
[1731846977838,15.0343,232.8,232.61,10.7474]
[1731846977839,20.0,232.72,232.61,10.7474]
[1731846978134,20.0,232.7,232.61,10.7474]
[1731846978348,23.776884,232.73,232.61,10.7474]
[1731846978640,20.0,232.7,232.61,10.7474]
[1731846978828,4.2977,232.68,232.61,10.7474]
[1731846979146,4.2957,232.79,232.61,10.7474]
[1731846979437,24.027864,232.78,232.61,10.7474]
[1731846979641,24.027864,232.76,232.61,10.7474]
[1731846979835,20.0,232.75,232.61,10.7474]
[1731846980138,24.027864,232.76,232.61,10.7474]
[1731846980326,23.776884,232.74,232.61,10.7474]
[1731846981141,4.2955,232.8,232.63,30.1502]
[1731846981336,4.2955,232.8,232.64,32.672]
[1731846981520,4.2955,232.8,232.65,30.1502]
[1731846981722,4.2955,232.8,232.66,20.0]
[1731846982116,10.7363,232.86,232.67,15.0427]
[1731846982318,18.05927673,232.86,232.67,15.0427]
[1731846982516,20.0,232.85,232.67,15.0427]
[1731846982716,0.09367462,232.82,232.65,34.4483]
[1731846982938,23.87055862,232.8,232.65,34.4483]
[1731846983144,23.776884,232.78,232.65,34.4483]
[1731846983440,20.0,232.75,232.65,34.4483]
[1731846983629,23.776884,232.74,232.65,34.4483]
[1731846983829,23.776884,232.74,232.65,45.194]
[1731846984341,10.7384,232.81,232.65,45.194]
[1731846984542,23.776884,232.79,232.65,45.194]
[1731846984731,20.0,232.78,232.65,45.194]
[1731846984918,23.776884,232.77,232.65,45.194]
[1731846985124,7.32297673,232.86,232.68,0.1]
[1731846985125,4.2946,232.85,232.68,0.1]
[1731846986227,4.2938,232.89,232.7,20.1]
[1731846986442,4.2938,232.89,232.71,30.1502]
[1731846987324,4.2938,232.89,232.74,0.1]
[1731846987527,4.2927,232.95,232.76,0.1]
[1731846987730,4.2927,232.95,232.77,12.472]
[1731846988340,12.7092,233.11,232.86,0.1]
[1731846988526,4.2901,233.09,232.86,0.1]
[1731846988845,4.06351162,233.09,232.85,0.1]
[1731846989520,4.06351162,233.09,232.85,20.1]
[1731846989718,0.09367462,233.08,232.85,20.0]
[1731846989915,4.06351162,233.09,232.85,20.0]
[1731846990139,4.06351162,233.09,232.86,0.1]
[1731846990343,10.725,233.1,232.88,20.0]
[1731846990650,10.725,233.1,232.87,15.0298]
[1731846990937,0.09367462,233.06,232.87,15.0298]
[1731846991319,0.34465462,233.06,232.87,10.7356]
[1731846991519,0.09367462,232.95,232.82,42.6222]
[1731846991745,0.22549,232.97,232.82,42.6222]
[1731846991746,0.12549,232.92,232.82,42.6222]
[1731846991924,0.25098,232.87,232.76,44.8831]
[1731846992138,20.0,232.84,232.76,44.8831]
[1731846992470,28.071784,232.83,232.76,44.8831]
[1731846992944,0.34465462,232.82,232.7,12.9912]
[1731846993631,0.25098,232.82,232.7,12.9912]
[1731846994456,24.027864,232.8,232.7,12.9912]
[1731846994746,0.09367462,232.75,232.57,10.7491]
[1731846994925,0.12549,232.74,232.57,10.7491]
[1731846995123,20.0,232.73,232.57,10.7491]
[1731846995325,20.0,232.71,232.57,10.7491]
[1731846995627,20.0,232.69,232.57,15.0488]
[1731846995831,23.776884,232.7,232.57,15.0488]
[1731846995832,20.0,232.67,232.57,10.7491]
[1731846996053,23.776884,232.64,232.54,44.8831]
[1731846996223,20.0,232.65,232.54,44.8831]
[1731846996549,23.776884,232.66,232.54,44.8831]
[1731846996550,20.0,232.63,232.54,44.8831]
[1731846997240,24.2986,232.63,232.54,44.8831]
[1731846997551,0.12549,232.7,232.55,20.0]
[1731846998224,0.12549,232.7,232.54,59.934]
[1731846998426,20.12549,232.73,232.55,20.1]
[1731846998635,20.0,232.71,232.55,20.1]
[1731846998837,20.0,232.69,232.56,15.0498]
[1731846999522,4.2957,232.79,232.59,0.1]
[1731847000640,0.09367462,232.81,232.6,15.0472]
[1731847000836,20.0,232.79,232.6,15.0472]
[1731847001730,4.2959,232.78,232.6,15.0472]
[1731847002240,24.027864,232.77,232.6,15.0472]
[1731847002446,20.0,232.74,232.6,15.0472]
[1731847002740,4.2968,232.73,232.6,15.0472]
[1731847003347,23.776884,232.72,232.6,15.0472]
[1731847003742,4.2968,232.73,232.6,10.748]
[1731847003743,4.2971,232.71,232.6,10.748]
[1731847004045,20.0,232.69,232.6,10.748]
[1731847004630,20.0,232.65,232.55,10.7503]
[1731847004833,20.0,232.65,232.54,44.8831]
[1731847005038,4.2971,232.71,232.54,44.8831]
[1731847005039,20.0,232.61,232.54,44.8831]
[1731847005349,20.0,232.61,232.5,4.301]
[1731847005532,24.027864,232.6,232.49,0.4557935]
[1731847005733,24.2997,232.57,232.49,0.4557935]
[1731847006039,23.776884,232.56,232.49,0.4557935]
[1731847006352,4.2997,232.57,232.49,0.4557935]
[1731847006930,20.0,232.61,232.49,0.4557935]
[1731847007149,42.9718,232.71,232.49,0.4557935]
[1731847007150,4.2981,232.66,232.49,15.6098935]
[1731847007667,4.2975,232.69,232.49,15.5098935]
[1731847007960,0.09367462,232.68,232.49,15.5098935]
[1731847008144,20.0,232.68,232.49,15.5098935]
[1731847008650,15.0414,232.69,232.49,15.5098935]
[1731847008651,23.776884,232.65,232.49,15.5098935]
[1731847008950,24.2984,232.64,232.49,15.5098935]
[1731847009152,4.2984,232.64,232.51,0.1]
[1731847009359,4.2968,232.73,232.51,23.876884]
[1731847009651,0.09367462,232.72,232.51,0.1]
[1731847010226,0.12549,232.71,232.51,0.1]
[1731847010452,20.0,232.71,232.51,23.876884]
[1731847010759,35.0388,232.73,232.52,15.0524]
[1731847011057,0.09367462,232.72,232.52,15.0524]
[1731847011560,0.09367462,232.72,232.52,10.7517]
[1731847011872,0.09367462,232.66,232.49,0.4557935]
[1731847012059,20.25098,232.63,232.49,0.4557935]
[1731847012363,20.0,232.61,232.49,0.4557935]
[1731847012556,20.0,232.59,232.49,0.4557935]
[1731847012861,23.776884,232.58,232.49,0.4557935]
[1731847013044,20.0,232.57,232.49,0.4557935]
[1731847014553,17.96441498,232.65,232.49,11.2088935]
[1731847014864,10.7461,232.65,232.49,11.2088935]
[1731847015250,27.43666512,232.73,232.49,11.2088935]
[1731847015464,10.7435,232.7,232.5,23.776884]
[1731847016562,0.09367462,232.69,232.51,15.053]
[1731847016743,23.87055862,232.69,232.51,15.053]
[1731847016943,20.0,232.66,232.51,15.053]
[1731847017153,10.7414,232.75,232.55,23.876884]
[1731847017660,10.742,232.73,232.54,12.727]
[1731847017968,10.742,232.73,232.54,12.827]
[1731847018341,10.7396,232.79,232.6,44.727]
[1731847018552,7.2923188,232.82,232.61,15.0466]
[1731847018760,0.1,232.83,232.61,15.0466]
[1731847018946,0.2,232.85,232.61,15.0466]
[1731847019265,43.1846141,232.86,232.61,15.0466]
[1731847019760,28.1542141,232.86,232.61,15.0466]
[1731847020061,15.0311,232.85,232.61,15.0466]
[1731847020262,15.0311,232.85,232.64,0.1]
[1731847020467,4.2946,232.85,232.67,0.1]
[1731847020967,4.2946,232.85,232.69,0.1]
[1731847021857,15.0284,232.89,232.7,4.2973]
[1731847022058,20.0,232.88,232.7,15.0407]
[1731847022440,20.0,232.88,232.71,44.727]
[1731847023378,4.2942,232.87,232.73,0.1]
[1731847024145,4.2942,232.87,232.72,15.0395]
[1731847024358,0.09367462,232.93,232.74,10.7416]
[1731847024648,44.12153862,232.93,232.74,10.7416]
[1731847024946,44.12153862,232.93,232.72,4.297]
[1731847025147,0.34465462,232.9,232.71,44.727]
[1731847026365,15.0284,232.89,232.71,44.727]
[1731847026543,0.09367462,232.87,232.71,38.200238]
[1731847026747,0.09367462,232.83,232.71,38.200238]
[1731847026949,23.776884,232.84,232.71,53.240238]
[1731847027150,20.0,232.83,232.71,53.240238]
[1731847027547,20.0,232.88,232.71,53.240238]
[1731847027748,20.0,232.86,232.71,53.240238]
[1731847028167,4.2946,232.85,232.71,53.240238]
[1731847028470,20.0,232.83,232.71,53.240238]
[1731847029361,4.2951,232.82,232.71,53.240238]
[1731847029573,4.2951,232.82,232.71,48.943138]
[1731847029947,4.2951,232.82,232.71,38.200238]
[1731847030869,20.0,232.8,232.71,38.200238]
[1731847031068,4.296,232.77,232.71,38.200238]
[1731847031849,23.776884,232.85,232.71,38.200238]
[1731847032054,20.0,232.84,232.71,38.200238]
[1731847032677,20.0,232.8,232.71,38.200238]
[1731847033465,20.0,232.82,232.71,38.200238]
[1731847033653,20.0,232.8,232.71,38.200238]
[1731847034273,4.2951,232.82,232.71,42.497338]
[1731847035359,10.7365,232.85,232.71,42.497338]
[1731847035677,43.776884,232.84,232.71,42.497338]
[1731847036576,4.2933,232.92,232.72,43.776884]
[1731847036777,4.2933,232.92,232.72,43.876884]
[1731847036981,4.2933,232.92,232.74,0.1]
[1731847037579,7.13569116,232.95,232.74,0.1]
[1731847037770,10.7322,232.95,232.75,15.0375]
[1731847038176,24.12153862,232.94,232.75,10.7411]
[1731847038390,0.09367462,232.92,232.75,10.7411]
[1731847038683,0.09367462,232.86,232.71,38.200238]
[1731847038864,0.25098,232.84,232.71,38.0881371]
[1731847039172,20.0,232.81,232.71,38.0881371]
[1731847039370,23.776884,232.78,232.71,38.0881371]
[1731847039573,20.0,232.77,232.71,38.0881371]
[1731847039969,21.56657462,232.86,232.71,38.0881371]
[1731847040278,24.027864,232.85,232.71,42.3852371]
[1731847041882,36.4868,232.96,232.71,53.1281371]
[1731847042177,20.0,232.95,232.71,53.1281371]
[1731847042354,36.4868,232.96,232.71,53.1281371]
[1731847042554,0.09367462,232.94,232.71,53.1281371]
[1731847042989,0.21916462,232.92,232.71,53.1281371]
[1731847043455,0.12549,232.91,232.71,53.1281371]
[1731847043652,23.99604862,232.9,232.72,20.0]
[1731847043871,4.41949,232.88,232.73,15.0388]
[1731847044053,20.12549,232.87,232.73,15.0388]
[1731847044255,0.09367462,232.86,232.71,38.0881371]
[1731847044463,20.12549,232.83,232.71,38.0881371]
[1731847044669,20.0,232.81,232.71,38.0881371]
[1731847045057,20.12549,232.83,232.71,38.0881371]
[1731847045277,20.0,232.81,232.71,42.3851371]
[1731847046466,4.2954,232.81,232.71,53.1280371]
[1731847046790,4.2954,232.81,232.71,48.8310371]
[1731847047158,20.0,232.79,232.71,38.0881371]
[1731847047379,23.776884,232.78,232.71,38.0881371]
[1731847047563,20.0,232.77,232.71,38.0881371]
[1731847048471,4.2962,232.76,232.71,38.0881371]
[1731847049873,7.01155772,232.84,232.71,38.0881371]
[1731847049874,24.2949,232.83,232.71,38.0881371]
[1731847050072,24.2949,232.83,232.71,42.3852371]
[1731847050073,4.2949,232.83,232.71,42.3852371]
[1731847050886,4.2949,232.83,232.72,20.0]
[1731847051489,4.2936,232.9,232.72,20.0]
[1731847052084,4.2936,232.9,232.73,31.0827]
[1731847052288,4.2936,232.9,232.74,20.0]
[1731847052478,21.4619,232.97,232.74,20.1]
[1731847052679,36.4851,232.97,232.76,20.0]
[1731847053684,20.0,232.94,232.77,10.7402]
[1731847053902,20.0,232.92,232.77,10.7402]
[1731847054068,0.12549,232.91,232.78,13.3046]
[1731847054269,0.25098,232.91,232.78,13.3046]
[1731847054576,0.12549,232.89,232.78,13.3046]
[1731847054886,0.12549,232.91,232.78,13.3046]
[1731847055092,23.902374,232.91,232.78,13.3046]
[1731847055279,24.2936,232.9,232.78,28.34]
[1731847055781,4.2925,232.96,232.79,51.2519]
[1731847055989,4.2925,232.96,232.84,13.1158]
[1731847056891,10.7298,233.0,232.87,4.2942]
[1731847058171,4.2916,233.01,232.89,23.776884]
[1731847058395,12.6829,233.15,232.87,15.1298]
[1731847058396,4.2896,233.12,232.92,0.1]
[1731847058599,4.2896,233.12,232.93,31.2519]
[1731847058971,10.7228,233.15,232.94,35.0252]
[1731847059280,17.82025469,233.15,232.94,35.0252]
[1731847059482,17.82025469,233.15,232.95,13.1158]
[1731847059675,17.82025469,233.15,232.97,20.0]
[1731847060086,0.09367462,233.14,232.96,31.2519]
[1731847060978,0.21916462,233.12,232.96,31.2519]
[1731847061175,0.12549,233.09,232.96,31.2519]
[1731847061375,24.027864,233.09,232.96,31.2519]
[1731847061574,24.027864,233.12,232.96,46.2757]
[1731847061781,4.2894,233.13,232.97,23.776884]
[1731847062172,4.2894,233.13,232.98,20.0]
[1731847062886,0.09367462,233.17,232.99,15.022]
[1731847063482,20.09367462,233.17,232.99,15.022]
[1731847063805,20.0,233.13,232.99,10.73]
[1731847063981,24.027864,233.12,232.97,4.2923]
[1731847064302,20.0,233.09,232.97,4.2923]
[1731847064599,20.0,233.09,232.97,15.0232]
[1731847065176,20.0,233.11,232.97,15.0232]
[1731847065601,4.29,233.1,232.97,15.0232]
[1731847065899,0.12549,233.09,232.96,31.2519]
[1731847066196,20.0,233.08,232.96,31.2519]
[1731847066403,20.0,233.08,232.97,4.2923]
[1731847066591,4.29,233.1,232.97,4.2923]
[1731847067673,20.0,233.08,232.96,31.2519]
[1731847067877,23.776884,233.07,232.96,31.2519]
[1731847068101,20.0,233.06,232.96,31.2519]
[1731847068598,20.0,233.09,232.96,31.2519]
[1731847069183,15.015,233.1,232.96,31.2519]
[1731847069184,20.0,233.07,232.96,31.2519]
[1731847069804,23.776884,233.04,232.96,31.2519]
[1731847070102,20.0,233.03,232.96,31.2519]
[1731847070483,20.0,233.05,232.96,31.2519]
[1731847071813,4.2911,233.04,232.96,31.2519]
[1731847072310,23.902374,233.03,232.96,31.2519]
[1731847072494,20.0,233.02,232.96,31.2519]
[1731847072684,23.902374,233.03,232.85,32.2089]
[1731847072685,0.12549,232.99,232.9,44.2229]
[1731847072883,20.0,232.98,232.9,44.2229]
[1731847073201,23.902374,232.97,232.9,44.2229]
[1731847073504,23.776884,232.93,232.84,31.4978]
[1731847073716,20.0,232.92,232.84,31.4978]
[1731847073884,4.2935,232.91,232.84,31.4978]
[1731847080024,23.902374,232.88,232.79,31.9424]
[1731847080216,20.0,232.87,232.79,31.9424]
[1731847080588,20.0,232.9,232.79,31.9424]
[1731847080890,23.776884,232.87,232.79,31.9424]
[1731847081089,20.0,232.86,232.79,31.9424]
[1731847081299,20.0,232.88,232.79,31.9424]
[1731847081491,20.0,232.86,232.79,31.9424]
[1731847081914,4.2949,232.83,232.79,31.9424]
[1731847083486,4.2946,232.85,232.79,31.9424]
[1731847085004,23.776884,232.9,232.79,31.9424]
[1731847085388,15.0272,232.91,232.79,31.9424]
[1731847085588,15.0272,232.91,232.79,36.238]
[1731847085797,4.2935,232.91,232.79,46.9772]
[1731847086514,10.7294,233.01,232.79,46.9772]
[1731847086703,10.7294,233.01,232.8,43.876884]
[1731847087607,18.03949956,233.01,232.81,15.0336]
[1731847088004,23.776884,233.0,232.82,55.819284]
[1731847088200,18.03949956,233.01,232.83,13.0532]
[1731847088603,22.33109956,233.01,232.84,15.0316]
[1731847089209,20.0,233.0,232.84,15.0316]
[1731847089504,22.33109956,233.01,232.84,15.0316]
[1731847089701,4.292,232.99,232.84,15.0316]
[1731847091293,24.292,232.99,232.84,15.0316]
[1731847091998,24.292,232.99,232.86,20.0]
[1731847091999,4.292,232.99,232.86,20.0]
[1731847092205,4.292,232.99,232.87,32.176]
[1731847093886,10.7288,233.02,232.87,32.176]
[1731847094092,23.776884,233.03,232.88,15.0291]
[1731847094809,4.2911,233.04,232.89,55.848284]
[1731847095207,21.4515,233.09,232.9,15.0278]
[1731847095407,28.6556026,233.09,232.9,15.0278]
[1731847096109,23.776884,233.07,232.9,15.0278]
[1731847096406,20.0,233.06,232.91,32.6234]
[1731847097003,20.0,233.04,232.91,32.6234]
[1731847098228,4.2912,233.03,232.91,47.6504]
[1731847098419,10.7242,233.12,232.92,43.776884]
[1731847099414,10.7242,233.12,232.93,15.0259]
[1731847099616,23.776884,233.1,232.93,15.0259]
[1731847099910,10.7242,233.12,232.91,32.6234]
[1731847099911,23.776884,233.04,232.91,32.6234]
[1731847100103,20.0,233.03,232.91,36.9168]
[1731847101310,4.2912,233.04,232.91,47.6505]
[1731847103415,4.2912,233.04,232.92,43.776884]
[1731847104511,4.2901,233.09,232.93,15.0259]
[1731847108901,43.776884,233.08,232.93,15.0259]
[1731847109619,0.34465462,233.07,232.91,32.6234]
[1731847110206,0.34465462,233.05,232.91,32.6234]
[1731847110515,0.54465462,233.05,232.91,32.6234]
[1731847110717,44.12153862,233.03,232.85,30.8314]
[1731847110911,24.12153862,233.01,232.85,30.8314]
[1731847111099,24.12153862,232.99,232.85,30.8314]
[1731847111303,20.0,232.96,232.85,30.8314]
[1731847111515,20.0,232.94,232.85,30.8314]
[1731847112218,20.0,232.96,232.85,30.8314]
[1731847112425,20.0,232.94,232.85,30.8314]
[1731847112625,20.0,232.96,232.85,30.8314]
[1731847112805,20.0,232.94,232.85,30.8314]
[1731847113005,4.2927,232.95,232.85,30.8314]
[1731847115904,20.0,232.93,232.85,30.8314]
[1731847116204,23.776884,232.92,232.85,30.8314]
[1731847116515,15.0246,232.95,232.85,30.8314]
[1731847116516,4.2927,232.95,232.85,41.5679]
[1731847116705,4.2912,233.03,232.85,45.8623]
[1731847117544,15.0194,233.03,232.85,45.8623]
[1731847118511,4.2916,233.01,232.85,45.8623]
[1731847118707,20.0,232.99,232.85,45.8623]
[1731847119822,24.292,232.99,232.85,45.8623]
[1731847120410,4.292,232.99,232.86,20.0]
[1731847120612,4.292,232.99,232.87,31.7577]
[1731847120813,10.7282,233.03,232.88,15.0291]
[1731847121227,4.2911,233.04,232.88,15.0291]
[1731847121425,4.2911,233.04,232.9,31.7577]
[1731847122826,4.2905,233.07,232.91,15.0272]
[1731847123130,24.2905,233.07,232.92,23.776884]
[1731847123502,4.2905,233.07,232.92,23.776884]
[1731847123716,4.2905,233.07,232.93,31.7577]
[1731847125211,4.2901,233.09,232.94,15.0252]
[1731847125421,4.2901,233.09,232.94,27.6841]
[1731847126328,20.0,233.1,232.94,27.6841]
[1731847127033,38.916674,233.11,232.94,23.3912]
[1731847127034,20.0,233.06,232.94,23.3912]
[1731847127560,20.0,233.06,232.94,12.6589]
[1731847127728,20.0,233.04,232.94,12.6589]
[1731847128419,4.2912,233.03,232.94,12.6589]
[1731847129132,20.0,233.02,232.94,12.6589]
[1731847129720,20.0,233.0,232.93,31.7577]
[1731847130322,4.292,232.99,232.93,31.7577]
[1731847131140,15.0166,233.08,232.93,36.0507]
[1731847132437,20.0,233.07,232.93,36.0507]
[1731847132739,4.2907,233.06,232.93,46.7835]
[1731847134738,4.2903,233.08,232.93,68.2491]
[1731847134943,4.2896,233.12,232.98,23.776884]
[1731847136037,0.1,233.23,232.98,23.776884]
[1731847136038,0.1,233.21,232.98,4.2922]
[1731847136233,24.12153862,233.19,232.98,4.2922]
[1731847136443,0.09367462,233.15,232.98,4.2922]
[1731847136743,20.0,233.1,232.97,32.6286]
[1731847136922,20.0,233.08,232.97,32.6286]
[1731847137823,20.0,233.1,232.97,32.6286]
[1731847138020,4.2905,233.07,232.97,32.6286]
[1731847139538,4.2905,233.07,232.97,47.6517]
[1731847140025,21.4412,233.2,232.97,47.6517]
[1731847140223,0.09367462,233.13,232.97,43.3595]
[1731847140442,0.09367462,233.13,232.97,32.6286]
[1731847140739,0.12549,233.12,232.97,32.6286]
[1731847140925,0.25098,233.12,232.97,32.6286]
[1731847141122,0.09367462,233.11,232.97,32.6286]
[1731847141329,0.21916462,233.11,232.97,32.6286]
[1731847141634,0.25098,233.1,232.97,32.6286]
[1731847141835,23.776884,233.12,232.97,47.6518]
[1731847142041,32.1616,233.2,233.01,15.0207]
[1731847142350,10.7204,233.2,233.01,15.0207]
[1731847143239,24.027864,233.19,233.01,15.0207]
[1731847143442,15.0098,233.18,233.02,23.776884]
[1731847143636,15.0098,233.18,233.03,32.6286]
[1731847144540,7.20816522,233.2,233.03,32.6286]
[1731847144841,20.0,233.21,233.04,4.2911]
[1731847145042,20.0,233.19,233.04,4.2911]
[1731847145345,23.776884,233.21,233.04,15.0188]
[1731847145545,23.776884,233.21,233.05,12.2873]
[1731847145727,7.05651606,233.22,233.05,12.2873]
[1731847146049,15.0066,233.23,233.05,12.2873]
[1731847146424,10.719,233.23,233.06,4.2907]
[1731847146645,20.0,233.22,233.06,4.2907]
[1731847147030,20.0,233.2,233.06,4.2907]
[1731847147434,4.2883,233.19,233.06,4.2907]
[1731847149632,23.902374,233.18,233.05,12.2873]
[1731847149839,20.0,233.17,233.05,12.2873]
[1731847150071,20.0,233.15,233.05,12.2873]
[1731847151066,23.776884,233.13,233.05,12.2873]
[1731847151350,20.0,233.1,233.03,32.6286]
[1731847151946,36.4586,233.14,233.03,32.6286]
[1731847151947,20.0,233.11,233.03,32.6286]
[1731847152353,20.0,233.09,233.03,32.6286]
[1731847153235,4.2903,233.08,233.03,32.6286]
[1731847154346,20.0,233.13,233.03,32.6286]
[1731847154553,4.2896,233.12,233.03,32.6286]
[1731847156441,4.289,233.15,233.03,47.648]
[1731847157835,7.24913233,233.21,233.03,47.648]
[1731847158148,20.0,233.19,233.03,47.648]
[1731847158648,20.0,233.17,233.03,47.648]
[1731847159059,4.2889,233.16,233.03,47.648]
[1731847159354,4.2889,233.16,233.04,20.0]
[1731847159554,10.7185,233.25,233.07,43.776884]
[1731847160466,10.7185,233.25,233.08,4.2903]
[1731847160672,20.0,233.24,233.08,4.2903]
[1731847160953,24.027864,233.23,233.08,4.2903]
[1731847161153,23.776884,233.21,233.08,15.0162]
[1731847161360,20.0,233.2,233.08,15.0162]
[1731847161552,20.0,233.2,233.09,30.7137]
[1731847161943,20.0,233.24,233.09,30.7137]
[1731847162138,4.287,233.26,233.09,30.7137]
[1731847162359,4.287,233.26,233.1,12.8876]
[1731847162654,4.287,233.26,233.11,15.0143]
[1731847163348,4.287,233.26,233.12,30.7137]
[1731847163534,4.287,233.26,233.13,20.0]
[1731847164360,4.2866,233.29,233.15,32.8876]
[1731847164557,4.2866,233.29,233.16,30.7137]
[1731847164771,4.2866,233.29,233.17,15.0104]
[1731847165345,0.4557935,233.3,233.18,43.776884]
[1731847165648,52.34135258,233.45,233.42,43.6013]
[1731847166747,4.2817,233.56,233.43,4.2839]
[1731847167141,126.59006906,233.58,233.42,54.3114]
[1731847167554,4.2825,233.51,233.42,43.6013]
[1731847169154,4.2829,233.49,233.42,43.6013]
[1731847169358,126.59006906,233.58,233.42,43.6013]
[1731847169549,4.2832,233.48,233.42,43.6013]
[1731847169744,43.776884,233.46,233.42,43.6013]
[1731847170067,43.776884,233.46,233.25,21.5353]
[1731847170068,0.25098,233.45,233.36,43.6013]
[1731847170966,20.25098,233.48,233.41,92.73295539]
[1731847171151,0.25098,233.48,233.46,79.48793939]
[1731847172263,4.2832,233.47,233.46,79.48793939]
[1731847172847,4.2832,233.47,233.46,74.01693939]
[1731847173046,20.0,233.45,233.41,92.73295539]
[1731847173260,0.34465462,233.42,233.41,92.73295539]
[1731847174346,4.62875462,233.42,233.41,92.73295539]
[1731847174853,4.62875462,233.42,233.32,0.1]
[1731847175671,4.2841,233.42,233.34,0.1]
[1731847176148,4.2841,233.42,233.32,0.1]
[1731847176149,4.2841,233.42,233.32,0.2]
[1731847178554,4.2844,233.4,233.32,0.2]
[1731847179470,20.1,233.38,233.18,44.027864]
[1731847179659,73.81098407,233.37,233.18,44.027864]
[1731847179967,68.13300476,233.36,233.18,44.027864]
[1731847180156,19.87018071,233.35,233.18,44.027864]
[1731847180358,51.10181371,233.34,233.18,44.027864]
[1731847180563,34.06787581,233.34,233.18,80.480264]
[1731847181165,4.2853,233.36,233.18,80.480264]
[1731847181368,4.2853,233.36,233.18,87.52645223]
[1731847181845,4.3848,233.38,233.18,87.52645223]
[1731847182551,4.3848,233.38,233.2,44.027864]
[1731847182874,0.09367462,233.43,233.2,44.027864]
[1731847183370,0.21916462,233.43,233.2,44.027864]
[1731847184664,4.50306462,233.43,233.24,20.0]
[1731847184863,0.12549,233.42,233.25,0.25098]
[1731847185159,0.25098,233.42,233.25,24.027864]
[1731847185358,0.25098,233.42,233.26,20.0]
[1731847186068,4.37757462,233.43,233.27,69.141684]
[1731847186370,4.2839,233.43,233.28,35.0033]
[1731847187868,20.09367462,233.46,233.28,35.0033]
[1731847188168,0.09367462,233.44,233.28,35.0033]
[1731847189163,4.2839,233.43,233.28,35.0033]
[1731847190448,6.66760691,233.56,233.32,20.25098]
[1731847190449,4.2829,233.49,233.32,20.25098]
[1731847190774,4.2829,233.49,233.34,52.1914]
[1731847192172,4.2829,233.49,233.35,14.9989]
[1731847192867,0.25098,233.46,233.35,14.9989]
[1731847194456,4.2835,233.45,233.35,14.9989]
[1731847196777,0.25098,233.48,233.35,14.9989]
[1731847197862,12.9229,233.58,233.37,13.0905]
[1731847198065,12.9229,233.58,233.38,23.776884]
[1731847198066,4.2813,233.57,233.38,23.776884]
[1731847198261,0.09367462,233.56,233.38,23.776884]
[1731847198465,14.9847,233.57,233.38,23.776884]
[1731847199165,24.027864,233.56,233.38,23.776884]
[1731847199371,24.027864,233.56,233.39,14.9962]
[1731847199772,0.25098,233.54,233.39,14.9962]
[1731847200281,0.25098,233.5,233.39,14.9962]
[1731847200460,20.0,233.51,233.39,14.9962]
[1731847201065,20.34465462,233.56,233.39,14.9962]
[1731847201279,0.09367462,233.54,233.35,59.026764]
[1731847201577,0.34465462,233.54,233.35,59.026764]
[1731847202466,4.2821,233.53,233.35,59.026764]
[1731847202783,20.34465462,233.52,233.35,34.9989]